{"text_format":"1","workbook":"xlsx","n_sheets":4,"sheets":["男子申込(形・組手共通)  ","女子申込(形・組手共通) ","形名リスト","振込票貼付 および ゼッケン送付先"],"not_rendered":{"charts":0,"images":0,"macros":1,"external_links":0,"defined_names":2,"comments":0,"pivot_tables":0},"unopened":[],"bounds":{"document_bytes":16777216,"sheet_cells":100000,"rows_first":2000,"rows_last":500,"rows_between":2000,"halvings":0,"cell_chars":16384,"cell_head_chars":4096},"cells_cut":0,"cells_raw":0,"read":"whole","date_system":"1900"}

{"sheet":"男子申込(形・組手共通)  ","index":0,"n_rows":59,"n_cols":21,"rows_kept":59,"cut":false,"hidden":false,"merged":[[3,8,3,9],[3,10,3,11],[3,12,4,12],[3,0,4,0],[3,1,4,1],[3,2,4,2],[3,3,4,3],[3,4,4,4],[3,5,3,7],[0,0,0,9],[0,17,0,20],[1,0,2,9],[1,17,2,17],[1,18,2,18],[1,19,2,19],[1,20,2,20]]}
["第12回 全九州少年少女空手道選手権大会（沖縄県那覇市） 20251108-09",null,null,null,null,null,null,null,null,null,null,null,null,null,null,null,null,"参加人数表（男子）"]
["注意1：「氏名」および「ふりがな」は左詰めし、姓と名の間に必ずスペースを入れてください。\n注意2：参加種目をプルダウン選択、形選手は第１ラウンド形名をプルダウン選択。「形名リスト」を参照。\n注意3：県大会順位を選択、級位または段位をプルダウン選択。\n注意4：右上の「参加人数表」にもご記入ください。",null,null,null,null,null,null,null,null,null,null,null,null,null,null,null,null,"学年","形",null,"組手"]
[]
[null,"学年","所属県名","氏　　名","ふりがな","参加種目",null,null,"県大会順位",null,"級位・段位",null,null,null,null,null,1,"小学１年",null,"-"]
[null,null,null,null,null,"形","形名 (第1ﾗｳﾝﾄﾞ)","組手","形","組手","級","段",null,null,"〇",null,2,"小学２年",null,"-"]
[1,null,"熊本県",null,null,null,null,null,null,null,null,null,null,null,"－",null,3,"小学３年",null,"-"]
[2,null,"熊本県",null,null,null,null,null,null,null,null,null,null,null,null,null,4,"小学４年",null,"-"]
[3,null,"熊本県",null,null,null,null,null,null,null,null,null,null,null,null,null,5,"小学５年",null,"-"]
[4,null,"熊本県",null,null,null,null,null,null,null,null,null,null,null,null,null,6,"小学６年",null,"-"]
[5,null,"熊本県",null,null,null,null,null,null,null,null,null,null,null,{"$f":"IF(F6=\"〇\",VLOOKUP($B6,$Q$3:$R$9,2,0),\"\")","v":""},{"$f":"IF(G6=\"〇\",VLOOKUP($B6,$Q$3:$R$9,2,0),\"\")","v":""},{"$f":"IF(H6=\"〇\",VLOOKUP($B6,$Q$3:$R$9,2,0),\"\")","v":""}]
[6,null,"熊本県",null,null,null,null,null,null,null,null,null,null,null,{"$f":"IF(F7=\"〇\",VLOOKUP($B7,$Q$3:$R$9,2,0),\"\")","v":""},{"$f":"IF(G7=\"〇\",VLOOKUP($B7,$Q$3:$R$9,2,0),\"\")","v":""},{"$f":"IF(H7=\"〇\",VLOOKUP($B7,$Q$3:$R$9,2,0),\"\")","v":""},null,"10級","―"]
[7,null,"熊本県",null,null,null,null,null,null,null,null,null,null,null,{"$f":"IF(F8=\"〇\",VLOOKUP($B8,$Q$3:$R$9,2,0),\"\")","v":""},"","",null,"9級"," 1(剛柔)　ゲキサイ第一"]
[8,null,"熊本県",null,null,null,null,null,null,null,null,null,null,null,"","","",null,"8級"," 2(剛柔)　ゲキサイ第二"]
[9,null,"熊本県",null,null,null,null,null,null,null,null,null,null,null,"","","",null,"7級"," 3(糸東)　平安初段"]
[10,null,"熊本県",null,null,null,null,null,null,null,null,null,null,null,"","","",null,"6級"," 4(糸東)　平安二段"]
[11,null,"熊本県",null,null,null,null,null,null,null,null,null,null,null,"","","",null,"5級"," 5(糸東)　平安三段"]
[12,null,"熊本県",null,null,null,null,null,null,null,null,null,null,null,"","","",null,"4級"," 6(糸東)　平安四段"]
[13,null,"熊本県",null,null,null,null,null,null,null,null,null,null,null,"","","",null,"3級"," 7(糸東)　平安五段"]
[14,null,"熊本県",null,null,null,null,null,null,null,null,null,null,null,"","","",null,"2級"," 8(松濤)　平安初段"]
[15,null,"熊本県",null,null,null,null,null,null,null,null,null,null,null,"","","",null,"1級"," 9(松濤)　平安二段"]
[16,null,"熊本県",null,null,null,null,null,null,null,null,null,null,null,"","","",null,"初段","10(松濤)　平安三段"]
[17,null,"熊本県",null,null,null,null,null,null,null,null,null,null,null,"","","",null,"弐段","11(松濤)　平安四段"]
[18,null,"熊本県",null,null,null,null,null,null,null,null,null,null,null,"","","",null,null,"12(松濤)　平安五段"]
[19,null,"熊本県",null,null,null,null,null,null,null,null,null,null,null,"","","",null,null,"13(和道)　ピンアン初段"]
[20,null,"熊本県",null,null,null,null,null,null,null,null,null,null,null,"","","",null,null,"14(和道)　ピンアン二段"]
[21,null,"熊本県",null,null,null,null,null,null,null,null,null,null,null,"","","",null,null,"15(和道)　ピンアン三段"]
[22,null,"熊本県",null,null,null,null,null,null,null,null,null,null,null,"","","",null,null,"16(和道)　ピンアン四段"]
[23,null,"熊本県",null,null,null,null,null,null,null,null,null,null,null,{"$f":"IF(F24=\"〇\",VLOOKUP($B24,$Q$3:$R$9,2,0),\"\")","v":""},"","",null,null,"17(和道)　ピンアン五段"]
[24,null,"熊本県",null,null,null,null,null,null,null,null,null,null,null,"","",""]
[25,null,"熊本県",null,null,null,null,null,null,null,null,null,null,null,"","",""]
[26,null,"熊本県",null,null,null,null,null,null,null,null,null,null,null,"","",""]
[27,null,"熊本県",null,null,null,null,null,null,null,null,null,null,null,"","",""]
[28,null,"熊本県",null,null,null,null,null,null,null,null,null,null,null,"","","",null,"1位",1]
[29,null,"熊本県",null,null,null,null,null,null,null,null,null,null,null,"","","",null,"2位",2]
[30,null,"熊本県",null,null,null,null,null,null,null,null,null,null,null,"","","",null,"3位",3]
[31,null,"熊本県",null,null,null,null,null,null,null,null,null,null,null,"","","",null,"4位",4]
[32,null,"熊本県",null,null,null,null,null,null,null,null,null,null,null,"","","",null,"5位","‐"]
[33,null,"熊本県",null,null,null,null,null,null,null,null,null,null,null,"","","",null,"6位"]
[34,null,"熊本県",null,null,null,null,null,null,null,null,null,null,null,"","",""]
[35,null,"熊本県",null,null,null,null,null,null,null,null,null,null,null,"","",""]
[36,null,"熊本県",null,null,null,null,null,null,null,null,null,null,null,"","",""]
[37,null,"熊本県",null,null,null,null,null,null,null,null,null,null,null,"","",""]
[38,null,"熊本県",null,null,null,null,null,null,null,null,null,null,null,"","",""]
[39,null,"熊本県",null,null,null,null,null,null,null,null,null,null,null,{"$f":"IF(F40=\"〇\",VLOOKUP($B40,$Q$3:$R$9,2,0),\"\")","v":""},"",""]
[40,null,"熊本県",null,null,null,null,null,null,null,null,null,null,null,"","",""]
[41,null,"熊本県",null,null,null,null,null,null,null,null,null,null,null,"","",""]
[42,null,"熊本県",null,null,null,null,null,null,null,null,null,null,null,"","",""]
[43,null,"熊本県",null,null,null,null,null,null,null,null,null,null,null,"","",""]
[44,null,"熊本県",null,null,null,null,null,null,null,null,null,null,null,"","",""]
[45,null,"熊本県",null,null,null,null,null,null,null,null,null,null,null,"","",""]
[46,null,"熊本県",null,null,null,null,null,null,null,null,null,null,null,"","",""]
[47,null,"熊本県",null,null,null,null,null,null,null,null,null,null,null,"","",""]
[48,null,"熊本県",null,null,null,null,null,null,null,null,null,null,null,"","",""]
[49,null,{"$f":"IF(D54=\"\",\"\",#REF!)","v":""},null,null,null,null,null,null,null,null,null,null,null,"","",""]
[50,null,{"$f":"IF(D55=\"\",\"\",#REF!)","v":""},null,null,null,null,null,null,null,null,null,null,null,"","",""]
[null,null,null,null,null,null,null,null,null,null,null,null,null,null,{"$f":"IF(#REF!=\"〇\",VLOOKUP(#REF!,$Q$3:$R$9,2,0),\"\")","v":{"$error":"#REF!"}},null,{"$f":"IF(#REF!=\"〇\",VLOOKUP(#REF!,$Q$3:$R$9,2,0),\"\")","v":{"$error":"#REF!"}}]
[null,null,null,null,null,null,null,null,null,null,null,null,null,null,{"$f":"IF(#REF!=\"〇\",VLOOKUP(#REF!,$Q$3:$R$9,2,0),\"\")","v":{"$error":"#REF!"}},null,{"$f":"IF(#REF!=\"〇\",VLOOKUP(#REF!,$Q$3:$R$9,2,0),\"\")","v":{"$error":"#REF!"}}]
[null,null,null,null,null,null,null,null,null,null,null,null,null,null,{"$f":"IF(#REF!=\"〇\",VLOOKUP(#REF!,$Q$3:$R$9,2,0),\"\")","v":{"$error":"#REF!"}},null,{"$f":"IF(#REF!=\"〇\",VLOOKUP(#REF!,$Q$3:$R$9,2,0),\"\")","v":{"$error":"#REF!"}}]
[null,null,null,null,null,null,null,null,null,null,null,null,null,null,{"$f":"IF(#REF!=\"〇\",VLOOKUP(#REF!,$Q$3:$R$9,2,0),\"\")","v":{"$error":"#REF!"}},null,{"$f":"IF(#REF!=\"〇\",VLOOKUP(#REF!,$Q$3:$R$9,2,0),\"\")","v":{"$error":"#REF!"}}]

{"sheet":"女子申込(形・組手共通) ","index":1,"n_rows":59,"n_cols":21,"rows_kept":59,"cut":false,"hidden":false,"merged":[[0,0,0,9],[1,0,2,9],[1,17,2,17],[1,18,2,18],[1,20,2,20],[0,17,0,20],[1,19,2,19],[3,12,4,12],[3,0,4,0],[3,1,4,1],[3,2,4,2],[3,3,4,3],[3,5,3,7],[3,8,3,9],[3,4,4,4],[3,10,3,11]]}
["第12回 全九州少年少女空手道選手権大会（沖縄県那覇市） 20251108-09",null,null,null,null,null,null,null,null,null,null,null,null,null,null,null,null,"参加人数表（女子）"]
["注意1：「氏名」および「ふりがな」は左詰めし、姓と名の間に必ずスペースを入れてください。\n注意2：参加種目をプルダウン選択。\n注意3：形選手は第１ラウンドの形名（基本形）をプルダウン選択。「形名リスト」を参照。\n注意3：県大会順位を選択、級位または段位をプルダウン選択。",null,null,null,null,null,null,null,null,null,null,null,null,null,null,null,null,"学年","形",null,"組手"]
[]
[null,"学年","所属県名","氏　　名","ふりがな","参加種目",null,null,"県大会順位",null,"級位・段位",null,null,null,null,null,1,"小学１年",null,"-"]
[null,null,null,null,null,"形","形名 (第1ﾗｳﾝﾄﾞ)","組手","形","組手","級","段",null,null,"〇",null,2,"小学２年",null,"-"]
[1,null,"熊本県",null,null,null,null,null,null,null,null,null,null,null,"－",null,3,"小学３年",null,"-"]
[2,null,"熊本県",null,null,null,null,null,null,null,null,null,null,null,null,null,4,"小学４年",null,"-"]
[3,null,"熊本県",null,null,null,null,null,null,null,null,null,null,null,null,null,5,"小学５年",null,"-"]
[4,null,"熊本県",null,null,null,null,null,null,null,null,null,null,null,null,null,6,"小学６年",null,"-"]
[5,null,"熊本県",null,null,null,null,null,null,null,null,null,null,null,{"$f":"IF(F6=\"〇\",VLOOKUP($B6,$Q$3:$R$9,2,0),\"\")","v":""},{"$f":"IF(G6=\"〇\",VLOOKUP($B6,$Q$3:$R$9,2,0),\"\")","v":""},{"$f":"IF(H6=\"〇\",VLOOKUP($B6,$Q$3:$R$9,2,0),\"\")","v":""}]
[6,null,"熊本県",null,null,null,null,null,null,null,null,null,null,null,{"$f":"IF(F7=\"〇\",VLOOKUP($B7,$Q$3:$R$9,2,0),\"\")","v":""},{"$f":"IF(G7=\"〇\",VLOOKUP($B7,$Q$3:$R$9,2,0),\"\")","v":""},{"$f":"IF(H7=\"〇\",VLOOKUP($B7,$Q$3:$R$9,2,0),\"\")","v":""},null,"10級","―"]
[7,null,"熊本県",null,null,null,null,null,null,null,null,null,null,null,{"$f":"IF(F8=\"〇\",VLOOKUP($B8,$Q$3:$R$9,2,0),\"\")","v":""},{"$f":"IF(G8=\"〇\",VLOOKUP($B8,$Q$3:$R$9,2,0),\"\")","v":""},"",null,"9級"," 1(剛柔)　ゲキサイ第一"]
[8,null,"熊本県",null,null,null,null,null,null,null,null,null,null,null,"","","",null,"8級"," 2(剛柔)　ゲキサイ第二"]
[9,null,"熊本県",null,null,null,null,null,null,null,null,null,null,null,"","","",null,"7級"," 3(糸東)　平安初段"]
[10,null,"熊本県",null,null,null,null,null,null,null,null,null,null,null,"","","",null,"6級"," 4(糸東)　平安二段"]
[11,null,"熊本県",null,null,null,null,null,null,null,null,null,null,null,"","","",null,"5級"," 5(糸東)　平安三段"]
[12,null,"熊本県",null,null,null,null,null,null,null,null,null,null,null,"","","",null,"4級"," 6(糸東)　平安四段"]
[13,null,"熊本県",null,null,null,null,null,null,null,null,null,null,null,"","","",null,"3級"," 7(糸東)　平安五段"]
[14,null,"熊本県",null,null,null,null,null,null,null,null,null,null,null,"","","",null,"2級"," 8(松濤)　平安初段"]
[15,null,"熊本県",null,null,null,null,null,null,null,null,null,null,null,"","","",null,"1級"," 9(松濤)　平安二段"]
[16,null,"熊本県",null,null,null,null,null,null,null,null,null,null,null,"","","",null,"初段","10(松濤)　平安三段"]
[17,null,"熊本県",null,null,null,null,null,null,null,null,null,null,null,"","","",null,"弐段","11(松濤)　平安四段"]
[18,null,"熊本県",null,null,null,null,null,null,null,null,null,null,null,"","","",null,null,"12(松濤)　平安五段"]
[19,null,"熊本県",null,null,null,null,null,null,null,null,null,null,null,"","","",null,null,"13(和道)　ピンアン初段"]
[20,null,"熊本県",null,null,null,null,null,null,null,null,null,null,null,{"$f":"IF(F21=\"〇\",VLOOKUP($B21,$Q$3:$R$9,2,0),\"\")","v":""},"",{"$f":"IF(H21=\"〇\",VLOOKUP($B21,$Q$3:$R$9,2,0),\"\")","v":""},null,null,"14(和道)　ピンアン二段"]
[21,null,"熊本県",null,null,null,null,null,null,null,null,null,null,null,"","","",null,null,"15(和道)　ピンアン三段"]
[22,null,"熊本県",null,null,null,null,null,null,null,null,null,null,null,"","","",null,null,"16(和道)　ピンアン四段"]
[23,null,"熊本県",null,null,null,null,null,null,null,null,null,null,null,"","","",null,null,"17(和道)　ピンアン五段"]
[24,null,"熊本県",null,null,null,null,null,null,null,null,null,null,null,"","",""]
[25,null,"熊本県",null,null,null,null,null,null,null,null,null,null,null,"","",""]
[26,null,"熊本県",null,null,null,null,null,null,null,null,null,null,null,"","",""]
[27,null,"熊本県",null,null,null,null,null,null,null,null,null,null,null,"","",""]
[28,null,"熊本県",null,null,null,null,null,null,null,null,null,null,null,"","","",null,"1位",1]
[29,null,"熊本県",null,null,null,null,null,null,null,null,null,null,null,"","","",null,"2位",2]
[30,null,"熊本県",null,null,null,null,null,null,null,null,null,null,null,"","","",null,"3位",3]
[31,null,"熊本県",null,null,null,null,null,null,null,null,null,null,null,"","","",null,"4位",4]
[32,null,"熊本県",null,null,null,null,null,null,null,null,null,null,null,"","","",null,"5位","‐"]
[33,null,"熊本県",null,null,null,null,null,null,null,null,null,null,null,"","","",null,"6位"]
[34,null,"熊本県",null,null,null,null,null,null,null,null,null,null,null,"","",""]
[35,null,"熊本県",null,null,null,null,null,null,null,null,null,null,null,"","",""]
[36,null,"熊本県",null,null,null,null,null,null,null,null,null,null,null,"","",""]
[37,null,"熊本県",null,null,null,null,null,null,null,null,null,null,null,"","",""]
[38,null,"熊本県",null,null,null,null,null,null,null,null,null,null,null,"","",""]
[39,null,"熊本県",null,null,null,null,null,null,null,null,null,null,null,{"$f":"IF(F40=\"〇\",VLOOKUP($B40,$Q$3:$R$9,2,0),\"\")","v":""},"",{"$f":"IF(H40=\"〇\",VLOOKUP($B40,$Q$3:$R$9,2,0),\"\")","v":""}]
[40,null,"熊本県",null,null,null,null,null,null,null,null,null,null,null,"","",""]
[41,null,"熊本県",null,null,null,null,null,null,null,null,null,null,null,"","",""]
[42,null,"熊本県",null,null,null,null,null,null,null,null,null,null,null,"","",""]
[43,null,"熊本県",null,null,null,null,null,null,null,null,null,null,null,"","",""]
[44,null,"熊本県",null,null,null,null,null,null,null,null,null,null,null,"","",""]
[45,null,"熊本県",null,null,null,null,null,null,null,null,null,null,null,"","",""]
[46,null,"熊本県",null,null,null,null,null,null,null,null,null,null,null,"","",""]
[47,null,"熊本県",null,null,null,null,null,null,null,null,null,null,null,"","",""]
[48,null,"熊本県",null,null,null,null,null,null,null,null,null,null,null,"","",""]
[49,null,{"$f":"IF(D54=\"\",\"\",#REF!)","v":""},null,null,null,null,null,null,null,null,null,null,null,"","",""]
[50,null,{"$f":"IF(D55=\"\",\"\",#REF!)","v":""},null,null,null,null,null,null,null,null,null,null,null,"","",""]
[null,null,null,null,null,null,null,null,null,null,null,null,null,null,{"$f":"IF(#REF!=\"〇\",VLOOKUP(#REF!,$Q$3:$R$9,2,0),\"\")","v":{"$error":"#REF!"}},null,{"$f":"IF(#REF!=\"〇\",VLOOKUP(#REF!,$Q$3:$R$9,2,0),\"\")","v":{"$error":"#REF!"}}]
[null,null,null,null,null,null,null,null,null,null,null,null,null,null,{"$f":"IF(#REF!=\"〇\",VLOOKUP(#REF!,$Q$3:$R$9,2,0),\"\")","v":{"$error":"#REF!"}},null,{"$f":"IF(#REF!=\"〇\",VLOOKUP(#REF!,$Q$3:$R$9,2,0),\"\")","v":{"$error":"#REF!"}}]
[null,null,null,null,null,null,null,null,null,null,null,null,null,null,{"$f":"IF(#REF!=\"〇\",VLOOKUP(#REF!,$Q$3:$R$9,2,0),\"\")","v":{"$error":"#REF!"}},null,{"$f":"IF(#REF!=\"〇\",VLOOKUP(#REF!,$Q$3:$R$9,2,0),\"\")","v":{"$error":"#REF!"}}]
[null,null,null,null,null,null,null,null,null,null,null,null,null,null,{"$f":"IF(#REF!=\"〇\",VLOOKUP(#REF!,$Q$3:$R$9,2,0),\"\")","v":{"$error":"#REF!"}},null,{"$f":"IF(#REF!=\"〇\",VLOOKUP(#REF!,$Q$3:$R$9,2,0),\"\")","v":{"$error":"#REF!"}}]

{"sheet":"形名リスト","index":2,"n_rows":27,"n_cols":3,"rows_kept":27,"cut":false,"hidden":false,"merged":[[2,1,2,2],[5,1,5,2],[9,1,9,2],[15,1,15,2],[21,1,21,2]]}
[]
[]
[null,"基本形リスト（形名）"]
[]
[]
[null,"【基本形一】"]
[null,"形番号","形　名"]
[null,1,"ゲキサイ第一"]
[null,2,"ゲキサイ第二"]
[null,"【基本形二】"]
[null,3,"平安初段"]
[null,4,"平安二段"]
[null,5,"平安三段"]
[null,6,"平安四段"]
[null,7,"平安五段"]
[null,"【基本形三】"]
[null,8,"平安初段"]
[null,9,"平安二段"]
[null,10,"平安三段"]
[null,11,"平安四段"]
[null,12,"平安五段"]
[null,"【基本形四】"]
[null,13,"ピンアン初段"]
[null,14,"ピンアン二段"]
[null,15,"ピンアン三段"]
[null,16,"ピンアン四段"]
[null,17,"ピンアン五段"]

{"sheet":"振込票貼付 および ゼッケン送付先","index":3,"n_rows":37,"n_cols":9,"rows_kept":37,"cut":false,"hidden":false,"merged":[[31,3,31,8],[32,3,32,8],[33,3,33,8],[34,3,34,8],[36,3,36,8],[35,3,35,8],[1,1,1,9],[9,1,11,1],[3,2,3,9],[7,5,7,6],[30,1,30,9],[3,1,5,1],[7,2,7,3],[9,2,11,3],[9,4,11,9]]}
[]
[null,"第12回 全九州空手道選手権大会（沖縄県那覇市）　令和7年11月8日（土）～9日（日）"]
[]
[null,"出場費：","形・組手　１種目　1人　４，０００円　（同一選手の形と組手両方の出場も可）"]
[null,null,"形","4,000円","×","　","名＝",null,"円"]
[null,null,"組手","4,000円","×",null,"名＝",null,"円"]
[]
[null,"送金日：","2025年　　月　　日",null,null,"合　　計",null,null,"円"]
[]
[null,"振込先：　ゆうちょ銀行","ゆうちょ銀行",null,"【口座番号】　０１９３０－８－１６８３３\n\n【加入者名】　一般社団法人熊本県空手道連盟　"]
[]
[]
[]
[null,"《振込票貼付欄》"]
[]
[]
[]
[]
[]
[]
[]
[]
[]
[]
[]
[]
[]
[]
[]
[]
[null,"◆ゼッケン送付先（道場責任者 宛）　※責任者が出張・入院等で不在の場合のみ代理の方に送ります。"]
[null,null,"郵便番号"," 〒"]
[null,null,"住　所"]
[null,null,"氏　名"]
[null,null,"電話番号"]
[null,null,"メール\nアドレス"]
[null,null,"備　考"]